bitfinex/quotes_SOLUSD_20251118
["timestamp","ask_amount","ask_price","bid_price","bid_amount"]
[1763487639523,0.2,140.6,140.59,10.49493312]
[1763487641360,0.2,140.6,140.59,9.80493312]
[1763487641652,0.2,140.6,140.59,10.49493312]
[1763487642016,0.2,140.6,140.59,9.80493312]
[1763487642221,0.2,140.6,140.59,14.06493312]
[1763487642952,0.2,140.6,140.59,14.75493312]
[1763487643321,0.2,140.6,140.59,4.95]
[1763487643520,0.2,140.6,140.59,14.75493312]
[1763487645235,0.2,140.6,140.59,10.49493312]
[1763487645427,0.2,140.66,140.65,9.80493312]
[1763487645737,0.2,140.66,140.65,14.06493312]
[1763487646353,0.2,140.66,140.62,0.69]
[1763487646354,0.2,140.66,140.64,9.80493312]
[1763487646657,0.2,140.66,140.63,9.80493312]
[1763487647337,0.2,140.66,140.64,9.80493312]
[1763487648347,0.2,140.66,140.65,10.49493312]
[1763487649035,0.2,140.66,140.65,14.75493312]
[1763487649449,0.2,140.67,140.66,18.12096]
[1763487649645,0.1,140.75,140.66,18.12096]
[1763487649646,0.1,140.75,140.67,18.12096]
[1763487649825,0.78,140.75,140.68,4.26]
[1763487650158,0.78,140.75,140.72,9.80493312]
[1763487650744,0.78,140.75,140.71,9.80493312]
[1763487651074,9.78882769,140.71,140.66,9.80493312]
[1763487651236,9.78882769,140.71,140.6,21.67260085]
[1763487651237,9.78882769,140.69,140.62,0.69]
[1763487651439,9.80493312,140.68,140.63,9.80493312]
[1763487651666,9.78882769,140.67,140.63,9.80493312]
[1763487651868,10.46882769,140.67,140.63,9.80493312]
[1763487652035,0.68,140.66,140.63,9.80493312]
[1763487652833,0.68,140.66,140.62,9.80493312]
[1763487653026,0.68,140.66,140.61,9.80493312]
[1763487654069,0.68,140.66,140.62,9.80493312]
[1763487654271,0.68,140.66,140.61,9.80493312]
[1763487654570,0.68,140.66,140.62,9.80493312]
[1763487655050,0.68,140.66,140.61,9.80493312]
[1763487655259,9.78882769,140.65,140.6,9.80493312]
[1763487655481,9.78882769,140.65,140.61,9.80493312]
[1763487655767,0.68,140.65,140.61,9.80493312]
[1763487656181,10.46882769,140.65,140.61,9.80493312]
[1763487656649,0.68,140.64,140.6,9.80493312]
[1763487657276,0.68,140.64,140.58,4.95]
[1763487657451,0.68,140.64,140.6,9.80493312]
[1763487658864,0.68,140.64,140.59,9.80493312]
[1763487659953,10.48493312,140.64,140.55,18.81096]
[1763487660278,10.48493312,140.64,140.52,0.69]
[1763487660279,9.80493312,140.59,140.52,0.69]
[1763487660459,14.74493312,140.59,140.52,0.69]
[1763487660982,10.46882769,140.58,140.53,9.80493312]
[1763487661179,9.78882769,140.56,140.51,9.80493312]
[1763487661375,19.59376081,140.56,140.52,5.28659144]
[1763487661685,0.68,140.55,140.49,4.95]
[1763487661980,4.94,140.55,140.5,15.09140703]
[1763487662171,4.94,140.55,140.51,9.80493312]
[1763487662374,0.68,140.55,140.52,9.80493312]
[1763487662595,14.04882769,140.56,140.53,9.80493312]
[1763487662596,9.78882769,140.56,140.53,9.80493312]
[1763487662765,6.58801672,140.62,140.58,18.12096]
[1763487663086,0.68,140.61,140.58,4.26]
[1763487663397,0.68,140.61,140.57,14.06493312]
[1763487663578,10.48493312,140.61,140.56,14.06493312]
[1763487663764,10.48493312,140.61,140.55,27.92589312]
[1763487663972,0.68,140.6,140.55,32.18589312]
[1763487664276,10.48493312,140.6,140.55,4.26]
[1763487664483,0.68,140.6,140.55,14.06493312]
[1763487664662,18.12096,140.63,140.55,14.06493312]
[1763487664663,0.68,140.59,140.55,14.06493312]
[1763487666982,0.68,140.63,140.6,9.80493312]
[1763487667286,0.68,140.63,140.52,9.80493312]
[1763487667467,19.59376081,140.62,140.53,4.95]
[1763487667658,23.85376081,140.62,140.56,9.80493312]
[1763487667862,0.68,140.61,140.56,9.80493312]
[1763487668065,0.68,140.61,140.54,0.69]
[1763487668260,9.78882769,140.6,140.54,14.06493312]
[1763487668486,9.78882769,140.6,140.55,9.80493312]
[1763487668681,0.68,140.59,140.55,9.80493312]
[1763487669097,0.68,140.59,140.54,4.26]
[1763487669289,0.68,140.59,140.55,9.80493312]
[1763487669876,0.68,140.59,140.56,9.80493312]
[1763487670082,18.12096,140.61,140.57,9.80493312]
[1763487670401,2.0,140.69,140.57,4.26]
[1763487670402,0.68,140.64,140.57,4.26]
[1763487670586,9.78882769,140.64,140.59,9.80493312]
[1763487670897,0.68,140.63,140.57,4.26]
[1763487671198,0.68,140.63,140.58,9.80493312]
[1763487671400,9.78882769,140.6,140.53,22.38096]
[1763487671599,9.78882769,140.6,140.55,9.80493312]
[1763487671901,0.68,140.59,140.56,9.80493312]
[1763487672275,0.66,140.61,140.57,9.80493312]
[1763487672470,0.66,140.61,140.54,0.71]
[1763487672676,0.66,140.61,140.56,9.80493312]
[1763487673965,0.66,140.61,140.53,4.26]
[1763487674174,0.66,140.61,140.56,9.80493312]
[1763487674668,9.78882769,140.6,140.55,9.80493312]
[1763487674876,0.66,140.61,140.57,9.80493312]
[1763487675072,4.92,140.63,140.59,9.80493312]
[1763487675286,4.92,140.63,140.56,14.06493312]
[1763487675287,20.25376081,140.62,140.56,14.06493312]
[1763487675588,9.78882769,140.61,140.56,14.06493312]
[1763487675810,10.44882769,140.61,140.56,14.06493312]
[1763487676006,0.66,140.6,140.57,9.80493312]
[1763487677010,0.66,140.6,140.56,14.06493312]
[1763487677193,0.66,140.6,140.54,14.06493312]
[1763487677510,15.19880567,140.6,140.54,14.06493312]
[1763487677807,10.46493312,140.6,140.54,14.06493312]
[1763487678014,10.44882769,140.64,140.59,9.80493312]
[1763487678221,0.66,140.63,140.6,9.80493312]
[1763487678505,0.66,140.63,140.52,19.59376081]
[1763487678506,19.59376081,140.62,140.51,0.71]
[1763487678710,9.80493312,140.61,140.55,9.80493312]
[1763487679007,10.46493312,140.61,140.55,9.80493312]
[1763487679192,9.78882769,140.59,140.52,4.26]
[1763487679410,9.78882769,140.59,140.53,9.80493312]
[1763487679598,0.66,140.58,140.53,9.80493312]
[1763487680593,9.80493312,140.61,140.52,4.26]
[1763487680797,0.67,140.6,140.55,9.80493312]
[1763487680992,9.78882769,140.59,140.55,4.26]
[1763487681290,9.78882769,140.59,140.53,9.80493312]
[1763487681291,19.59376081,140.57,140.5,9.80493312]
[1763487681487,10.47493312,140.58,140.52,9.80493312]
[1763487681694,14.73493312,140.59,140.52,9.80493312]
[1763487682222,0.67,140.58,140.52,9.80493312]
[1763487682395,0.67,140.58,140.5,4.95]
[1763487682603,10.47493312,140.58,140.52,9.80493312]
[1763487683005,14.06493312,140.59,140.52,9.80493312]
[1763487683188,0.67,140.57,140.5,4.26]
[1763487683394,0.67,140.57,140.51,9.80493312]
[1763487684115,0.67,140.57,140.52,9.80493312]
[1763487684316,0.67,140.57,140.51,9.80493312]
[1763487684491,0.67,140.57,140.53,9.80493312]
[1763487684688,9.78882769,140.6,140.55,9.80493312]
[1763487684893,0.67,140.59,140.54,14.06493312]
[1763487685913,0.67,140.59,140.55,9.80493312]
[1763487686113,0.67,140.59,140.54,14.06493312]
[1763487686816,0.67,140.59,140.54,14.75493312]
[1763487687012,0.67,140.59,140.54,4.95]
[1763487687217,0.67,140.63,140.58,9.80493312]
[1763487687404,0.67,140.63,140.57,4.26]
[1763487687598,10.47493312,140.63,140.57,14.06493312]
[1763487687793,0.67,140.63,140.57,14.06493312]
[1763487687992,0.67,140.62,140.57,14.06493312]
[1763487688389,0.67,140.62,140.57,14.75493312]
[1763487688918,0.67,140.62,140.57,14.06493312]
[1763487689100,0.67,140.62,140.57,14.75493312]
[1763487689715,0.67,140.62,140.57,14.06493312]
[1763487690495,0.67,140.62,140.57,4.26]
[1763487690704,0.67,140.62,140.57,14.06493312]
[1763487691223,0.67,140.62,140.57,14.75493312]
[1763487691524,0.67,140.62,140.58,9.80493312]
[1763487692203,0.67,140.62,140.57,4.26]
[1763487692395,0.67,140.62,140.58,9.80493312]
[1763487692596,5.90801672,140.68,140.58,10.49493312]
[1763487692795,5.90801672,140.68,140.62,5.85714554]
[1763487692796,0.67,140.68,140.62,5.85714554]
[1763487693008,6.52714554,140.68,140.62,5.85714554]
[1763487693206,6.52714554,140.68,140.61,4.95]
[1763487693503,0.67,140.67,140.62,5.85714554]
[1763487693703,0.67,140.67,140.63,5.85714554]
[1763487694018,0.67,140.67,140.62,5.85714554]
[1763487694499,5.85714554,140.66,140.6,5.85714554]
[1763487694841,5.85714554,140.66,140.6,10.11714554]
[1763487695011,0.67,140.65,140.6,4.26]
[1763487695195,6.52714554,140.65,140.6,4.26]
[1763487695395,5.85714554,140.64,140.6,4.26]
[1763487695628,6.52714554,140.64,140.6,4.26]
[1763487695832,0.67,140.63,140.6,4.26]
[1763487696515,10.45882769,140.63,140.58,5.85714554]
[1763487696700,16.31597323,140.63,140.57,10.11714554]
[1763487697028,0.67,140.62,140.58,5.85714554]
[1763487697321,0.67,140.62,140.57,10.11714554]
[1763487697523,0.67,140.62,140.57,4.26]
[1763487697703,0.67,140.62,140.57,10.11714554]
[1763487697903,5.85714554,140.64,140.58,5.85714554]
[1763487698101,0.67,140.64,140.59,5.85714554]
[1763487698309,5.41389184,140.64,140.59,5.85714554]
[1763487698507,0.67,140.64,140.59,5.85714554]
[1763487698703,0.67,140.63,140.58,0.69]
[1763487698904,0.67,140.63,140.58,6.54714554]
[1763487699523,4.74389184,140.64,140.59,6.54714554]
[1763487699709,10.45882769,140.65,140.59,6.54714554]
[1763487699921,0.67,140.64,140.59,5.85714554]
[1763487700107,4.74636755,140.65,140.6,0.69]
[1763487700312,0.67,140.68,140.63,5.85714554]
[1763487700718,0.67,140.68,140.62,5.85714554]
[1763487701035,9.78882769,140.67,140.62,5.85714554]
[1763487701330,14.53519524,140.67,140.62,5.85714554]
[1763487701531,0.67,140.66,140.62,5.85714554]
[1763487701906,0.67,140.66,140.61,4.26]
[1763487702105,11.27351309,140.66,140.6,5.85714554]
[1763487702714,0.72,140.65,140.6,5.85714554]
[1763487703329,0.72,140.65,140.61,5.85714554]
[1763487703520,0.72,140.65,140.6,5.85714554]
[1763487704331,4.74636755,140.66,140.62,5.85714554]
[1763487704540,0.72,140.66,140.62,5.85714554]
[1763487704730,0.72,140.65,140.62,5.85714554]
[1763487706012,14.53519524,140.67,140.62,5.85714554]
[1763487706209,0.72,140.65,140.62,5.85714554]
[1763487706534,0.72,140.65,140.6,0.7]
[1763487706738,0.72,140.65,140.62,5.85714554]
[1763487707048,0.72,140.65,140.6,5.85714554]
[1763487707216,9.78882769,140.64,140.59,10.11714554]
[1763487707413,9.78882769,140.64,140.59,4.26]
[1763487707617,0.72,140.63,140.59,4.26]
[1763487708024,0.72,140.63,140.58,5.85714554]
[1763487708730,0.72,140.63,140.59,5.85714554]
[1763487708941,0.72,140.63,140.57,4.26]
[1763487709142,0.72,140.63,140.58,5.85714554]
[1763487709358,15.64597323,140.62,140.57,4.26]
[1763487709639,15.64597323,140.62,140.56,5.85714554]
[1763487709836,0.72,140.61,140.56,5.85714554]
[1763487710146,0.72,140.61,140.57,5.85714554]
[1763487710942,0.72,140.64,140.6,5.85714554]
[1763487711122,0.72,140.64,140.61,5.85714554]
[1763487711330,0.72,140.64,140.6,5.85714554]
[1763487711833,0.72,140.64,140.61,5.85714554]
[1763487712029,0.72,140.64,140.6,5.85714554]
[1763487713053,9.0103788,140.66,140.62,5.85714554]
[1763487713221,0.72,140.65,140.61,5.85714554]
[1763487714228,0.72,140.65,140.59,4.96]
[1763487714435,0.72,140.65,140.6,5.85714554]
[1763487714847,10.50882769,140.65,140.6,5.85714554]
[1763487715036,0.72,140.64,140.61,5.85714554]
[1763487715719,0.72,140.64,140.6,5.85714554]
[1763487716263,0.72,140.64,140.52,0.71164247]
[1763487716430,5.85714554,140.62,140.56,5.85714554]
[1763487716625,4.74535844,140.62,140.57,5.85714554]
[1763487716829,0.72,140.61,140.57,5.85714554]
[1763487717456,5.90801672,140.67,140.6,5.85714554]
[1763487717629,9.78882769,140.64,140.61,5.85714554]
[1763487717951,9.78882769,140.64,140.6,5.85714554]
[1763487718342,0.72,140.64,140.61,5.85714554]
[1763487718542,0.72,140.64,140.62,5.85714554]
[1763487718733,14.04882769,140.66,140.62,5.85714554]
[1763487718941,14.76882769,140.66,140.62,5.85714554]
[1763487719139,0.72,140.65,140.62,5.85714554]
[1763487719345,4.98,140.66,140.62,5.85714554]
[1763487719551,4.74546402,140.67,140.62,6.55714554]
[1763487719750,10.50882769,140.67,140.63,5.85714554]
[1763487720053,0.72,140.67,140.63,5.85714554]
[1763487720257,0.72,140.66,140.63,5.85714554]
[1763487720758,0.72,140.67,140.63,5.85714554]
[1763487720946,18.79429171,140.68,140.63,5.85714554]
[1763487721145,18.12096,140.7,140.66,5.85714554]
[1763487721146,9.78882769,140.7,140.66,5.85714554]
[1763487721455,0.72,140.7,140.66,5.85714554]
[1763487721755,14.04882769,140.71,140.67,5.85714554]
[1763487722060,0.72,140.7,140.66,6.55714554]
[1763487722239,0.72,140.7,140.67,5.85714554]
[1763487722435,0.1,140.72,140.66,18.12096]
[1763487722637,0.1,140.72,140.71,5.85714554]
[1763487723349,0.1,140.72,140.7,5.85714554]
[1763487723957,0.1,140.72,140.71,6.55714554]
[1763487724260,0.1,140.72,140.71,5.85714554]
[1763487724758,0.1,140.72,140.68,4.26]
[1763487724957,0.82,140.72,140.68,10.11714554]
[1763487725171,0.82,140.72,140.68,5.85714554]
[1763487725664,0.82,140.72,140.67,5.85714554]
[1763487725832,6.67714554,140.72,140.66,5.85714554]
[1763487726154,0.72,140.71,140.66,5.85714554]
[1763487726525,0.72,140.71,140.66,6.55714554]
[1763487726927,0.72,140.71,140.65,5.85714554]
[1763487726928,6.57714554,140.71,140.65,5.85714554]
[1763487727124,6.57714554,140.71,140.63,5.85714554]
[1763487727125,15.64597323,140.7,140.63,5.85714554]
[1763487727364,9.78882769,140.68,140.63,5.85714554]
[1763487727676,9.78882769,140.68,140.62,5.85714554]
[1763487727950,10.50882769,140.68,140.62,5.85714554]
[1763487728173,10.50882769,140.68,140.63,5.85714554]
[1763487728328,0.72,140.67,140.63,5.85714554]
[1763487728952,0.72,140.67,140.61,23.08096]
[1763487729163,0.72,140.67,140.62,5.85714554]
[1763487729633,0.72,140.67,140.63,5.85714554]
[1763487730230,0.72,140.69,140.64,5.85714554]
[1763487730453,4.73850706,140.71,140.68,5.85714554]
[1763487730762,0.1,140.72,140.68,5.85714554]
[1763487731062,0.72,140.71,140.67,5.85714554]
[1763487731438,0.1,140.72,140.67,6.55714554]
[1763487731761,0.82,140.72,140.67,5.85714554]
[1763487732161,6.67714554,140.72,140.65,4.96]
[1763487732369,15.64597323,140.71,140.65,4.26]
[1763487732538,16.35597323,140.71,140.65,4.26]
[1763487732861,0.71,140.7,140.65,10.11714554]
[1763487733031,0.71,140.7,140.65,5.85714554]
[1763487733860,9.78882769,140.69,140.63,10.11714554]
[1763487734062,5.85714554,140.68,140.62,5.85714554]
[1763487734262,0.71,140.68,140.62,5.85714554]
[1763487734452,0.71,140.68,140.61,4.96]
[1763487734453,0.71,140.68,140.63,5.85714554]
[1763487734946,0.71,140.68,140.64,5.85714554]
[1763487735145,4.26,140.7,140.64,5.85714554]
[1763487735468,4.97,140.7,140.64,6.55714554]
[1763487736251,0.71,140.69,140.64,6.55714554]
[1763487736894,10.49882769,140.69,140.63,5.85714554]
[1763487737067,10.49882769,140.69,140.62,0.7]
[1763487737375,0.71,140.68,140.63,5.85714554]
[1763487737749,0.71,140.68,140.63,6.55714554]
[1763487738150,0.71,140.68,140.64,5.85714554]
[1763487738565,0.71,140.68,140.65,5.85714554]
[1763487739056,0.71,140.68,140.64,5.85714554]
[1763487739378,0.71,140.7,140.65,4.26]
[1763487739576,38.83693323,140.72,140.65,10.11714554]
[1763487739877,0.71,140.7,140.65,10.11714554]
[1763487740261,14.82882769,140.72,140.66,6.55714554]
[1763487740576,5.85714554,140.69,140.63,23.97810554]
[1763487740749,5.85714554,140.69,140.62,10.11714554]
[1763487740948,0.68,140.68,140.62,10.11714554]
[1763487741175,0.68,140.68,140.62,4.26]
[1763487741378,0.68,140.68,140.62,10.11714554]
[1763487741684,0.68,140.68,140.63,5.85714554]
[1763487742183,0.68,140.68,140.62,10.82714554]
[1763487742675,0.68,140.68,140.63,5.85714554]
[1763487742850,0.68,140.68,140.62,10.82714554]
[1763487743253,0.68,140.68,140.63,5.85714554]
[1763487744558,0.68,140.68,140.62,4.97]
[1763487744754,0.68,140.68,140.63,5.85714554]
[1763487745492,0.68,140.68,140.64,5.85714554]
[1763487745654,18.12096,140.7,140.66,5.85714554]
[1763487746049,0.68,140.69,140.64,5.85714554]
[1763487746457,0.68,140.69,140.64,6.56714554]
[1763487747077,0.68,140.69,140.65,5.85714554]
[1763487747651,0.68,140.69,140.66,5.85714554]
[1763487747856,0.68,140.69,140.65,5.85714554]
[1763487748194,5.85714554,140.67,140.6,4.97]
[1763487748348,9.78882769,140.68,140.63,5.85714554]
[1763487748654,10.46882769,140.68,140.63,5.85714554]
[1763487748856,0.68,140.67,140.63,6.56714554]
[1763487749360,0.68,140.67,140.61,0.71]
[1763487749565,0.68,140.67,140.62,5.85714554]
[1763487749967,0.68,140.67,140.62,6.56714554]
[1763487750472,0.68,140.67,140.63,5.85714554]
[1763487750791,4.26,140.69,140.64,5.85714554]
[1763487750987,4.94,140.69,140.64,5.85714554]
[1763487751195,0.68,140.68,140.64,5.85714554]
[1763487751393,0.68,140.68,140.62,5.85714554]
[1763487752396,0.68,140.68,140.63,5.85714554]
[1763487752598,0.68,140.68,140.62,5.85714554]
[1763487753998,0.68,140.68,140.63,5.85714554]
[1763487754295,0.68,140.68,140.62,0.71]
[1763487754599,0.68,140.68,140.63,5.85714554]
[1763487754800,0.68,140.68,140.64,9.78623903]
[1763487754981,0.68,140.68,140.63,9.78623903]
[1763487757300,0.1,140.72,140.64,4.97]
[1763487757506,0.1,140.72,140.7,9.78623903]
[1763487757683,0.1,140.72,140.71,9.78623903]
[1763487758078,0.1,140.72,140.71,10.49623903]
[1763487758479,0.1,140.72,140.71,9.78623903]
[1763487758690,0.1,140.72,140.71,10.49623903]
[1763487759488,0.1,140.72,140.71,20.28506672]
[1763487759999,0.1,140.75,140.74,18.12096]
[1763487760203,0.1,140.75,140.74,32.16719903]
[1763487760402,0.1,140.75,140.74,32.87719903]
[1763487760903,0.1,140.75,140.74,42.66602672]
[1763487761693,0.1,140.75,140.74,32.87719903]
[1763487763508,0.1,140.8,140.75,9.78882769]
[1763487763684,0.1,140.8,140.79,9.78623903]
[1763487764007,0.1,140.8,140.79,14.04623903]
[1763487764583,0.82,140.8,140.78,9.78623903]
[1763487764999,0.82,140.8,140.77,9.78623903]
[1763487765218,0.82,140.8,140.76,14.04623903]
[1763487765508,0.82,140.8,140.77,9.78623903]
[1763487768314,0.82,140.8,140.75,14.04623903]
[1763487768315,9.78882769,140.79,140.75,14.04623903]
[1763487768694,0.72,140.78,140.74,9.78623903]
[1763487768896,9.78882769,140.77,140.73,9.78623903]
[1763487769310,0.72,140.76,140.72,9.78623903]
[1763487771616,0.72,140.76,140.71,9.78623903]
[1763487771990,0.72,140.76,140.71,14.04623903]
[1763487773720,10.50623903,140.76,140.67,0.7]
[1763487773919,10.50623903,140.76,140.7,9.78623903]
[1763487774216,0.72,140.75,140.71,9.78623903]
[1763487774419,0.72,140.75,140.7,9.78623903]
[1763487774817,0.72,140.75,140.68,4.96]
[1763487775126,10.50623903,140.75,140.69,9.78623903]
[1763487775303,0.72,140.74,140.69,9.78623903]
[1763487775627,18.84096,140.74,140.71,9.78623903]
[1763487776102,0.72,140.73,140.71,9.78623903]
[1763487776620,0.72,140.73,140.69,9.78623903]
[1763487776921,0.72,140.73,140.7,9.78623903]
[1763487777420,0.72,140.73,140.68,4.96]
[1763487777720,0.72,140.73,140.7,9.78623903]
[1763487777891,0.72,140.73,140.69,9.78623903]
[1763487779123,0.72,140.73,140.68,14.04623903]
[1763487780223,0.72,140.73,140.68,4.26]
[1763487780399,10.50623903,140.73,140.66,22.38096]
[1763487780696,10.50623903,140.73,140.68,9.78623903]
[1763487781021,0.72,140.72,140.68,9.78623903]
[1763487781708,0.72,140.72,140.69,9.78623903]
[1763487782522,0.72,140.72,140.7,9.78623903]
[1763487782717,18.84096,140.74,140.7,9.78623903]
[1763487782908,0.72,140.73,140.7,9.78623903]
[1763487783223,0.72,140.77,140.72,9.78623903]
[1763487783412,0.72,140.76,140.7,0.7]
[1763487783617,0.72,140.76,140.71,9.78623903]
[1763487783819,0.72,140.76,140.73,9.78623903]
[1763487784004,0.72,140.77,140.73,9.78623903]
[1763487784204,0.72,140.77,140.74,9.78623903]
[1763487784425,27.90978769,140.79,140.75,9.78623903]
[1763487784426,0.72,140.79,140.75,9.78623903]
[1763487784600,0.72,140.79,140.75,14.04623903]
[1763487785428,0.72,140.79,140.75,4.26]
[1763487785606,0.72,140.79,140.75,14.04623903]
[1763487786201,0.1,140.8,140.76,9.78623903]
[1763487786524,0.72,140.79,140.75,14.04623903]
[1763487786901,0.72,140.79,140.75,4.26]
[1763487787221,0.72,140.79,140.75,14.04623903]
[1763487787413,0.72,140.79,140.76,9.78623903]
[1763487788806,0.1,140.8,140.76,9.78623903]
[1763487789014,0.72,140.79,140.76,9.78623903]
[1763487789236,0.72,140.79,140.75,4.26]
[1763487789604,10.50623903,140.79,140.73,14.04623903]
[1763487790023,0.72,140.78,140.74,9.78623903]
[1763487791204,0.72,140.78,140.75,9.78623903]
[1763487791503,18.22096,140.8,140.75,9.78623903]
[1763487791719,0.72,140.79,140.75,9.78623903]
[1763487793030,0.72,140.79,140.76,4.26]
[1763487793399,0.1,140.8,140.76,14.04623903]
[1763487793604,0.78,140.8,140.76,14.70623903]
[1763487793930,0.78,140.8,140.76,14.04623903]
[1763487794118,0.78,140.8,140.77,9.78623903]
[1763487794610,0.1,140.8,140.77,9.78623903]
[1763487794813,0.1,140.8,140.78,9.78623903]
[1763487795028,0.1,140.8,140.79,9.78623903]
[1763487795331,0.1,140.8,140.79,14.04623903]
[1763487795846,0.1,140.8,140.79,14.70623903]
[1763487796346,0.1,140.8,140.79,14.04623903]
[1763487797426,0.1,140.8,140.79,4.26]
[1763487798042,0.1,140.8,140.78,9.78623903]
[1763487798441,0.1,140.8,140.77,14.04623903]
[1763487798649,0.78,140.8,140.77,14.04623903]
[1763487800255,0.78,140.8,140.78,9.78623903]
[1763487801334,0.1,140.8,140.78,9.78623903]
[1763487801731,0.1,140.8,140.79,14.04623903]
[1763487804055,0.79,140.8,140.76,9.78623903]
[1763487804238,0.79,140.8,140.76,14.04623903]
[1763487804547,0.79,140.8,140.75,9.78623903]
[1763487804747,0.79,140.8,140.76,4.26]
[1763487804957,0.79,140.8,140.74,9.78623903]
[1763487805148,9.78623903,140.79,140.74,4.26]
[1763487805535,0.69,140.78,140.74,4.26]
[1763487806143,0.69,140.78,140.73,9.78623903]
[1763487806458,10.47623903,140.78,140.73,4.26]
[1763487806833,0.69,140.77,140.73,14.04623903]
[1763487807454,0.69,140.77,140.73,4.26]
[1763487807957,0.69,140.77,140.73,14.04623903]
[1763487808160,0.69,140.77,140.73,4.26]
[1763487808340,0.69,140.77,140.73,14.04623903]
[1763487808744,0.69,140.77,140.73,14.76623903]
[1763487808940,18.22096,140.8,140.74,10.50623903]
[1763487809163,0.69,140.79,140.75,9.78623903]
[1763487809938,0.69,140.79,140.73,14.04623903]
[1763487809939,10.47623903,140.79,140.73,14.04623903]
[1763487810462,0.69,140.78,140.73,14.04623903]
[1763487810832,10.47623903,140.78,140.73,4.26]
[1763487811254,0.69,140.77,140.73,4.26]
[1763487811867,0.69,140.77,140.73,14.04623903]
[1763487812936,0.69,140.77,140.73,4.26]
[1763487814056,0.69,140.77,140.73,14.76623903]
[1763487814432,0.69,140.77,140.73,4.26]
[1763487814636,0.69,140.77,140.74,9.78623903]
[1763487814833,0.69,140.79,140.75,9.78623903]
[1763487815576,0.69,140.79,140.74,10.50623903]
[1763487815863,0.69,140.79,140.75,9.78623903]
[1763487816060,0.69,140.79,140.76,4.26]
[1763487820168,2.93495694,140.79,140.73,4.26]
[1763487820383,2.24495694,140.78,140.73,4.26]
[1763487820682,2.24495694,140.77,140.73,4.26]
[1763487820840,2.93495694,140.77,140.73,4.26]
[1763487821049,0.69,140.76,140.73,4.26]
[1763487821550,0.69,140.76,140.73,6.50495694]
[1763487823077,0.69,140.76,140.73,4.26]
[1763487824878,0.1,140.8,140.76,18.12096]
[1763487825079,0.1,140.8,140.79,2.24495694]
[1763487825540,0.1,140.8,140.79,2.90495694]
[1763487825745,0.1,140.8,140.79,4.26]
[1763487825980,0.1,140.8,140.79,6.50495694]
[1763487826186,0.1,140.8,140.79,7.16495694]
[1763487826796,0.1,140.8,140.79,10.7617688]
[1763487826999,0.1,140.8,140.79,10.1017688]
[1763487827203,0.1,140.8,140.79,4.26]
[1763487827382,0.1,140.8,140.79,10.1017688]
[1763487827891,0.1,140.8,140.78,5.8417688]
[1763487828100,0.71,140.79,140.77,5.8417688]
[1763487828401,0.71,140.79,140.75,10.1017688]
[1763487828815,0.71,140.79,140.75,4.26]
[1763487829303,6.5517688,140.79,140.75,4.26]
[1763487829498,0.71,140.79,140.75,4.26]
[1763487829807,5.9417688,140.8,140.75,4.26]
[1763487829808,0.71,140.78,140.75,4.26]
[1763487830810,0.71,140.78,140.73,5.8417688]
[1763487831012,0.71,140.78,140.68,15.63059649]
[1763487831013,5.8417688,140.77,140.71,5.8417688]
[1763487831381,5.8417688,140.78,140.72,5.8417688]
[1763487831680,0.71,140.76,140.72,5.8417688]
[1763487832583,0.71,140.76,140.73,5.8417688]
[1763487833196,10.58815752,140.79,140.73,5.8417688]
[1763487833505,0.71,140.78,140.7,4.92]
[1763487833718,0.71,140.78,140.74,5.8417688]
[1763487834015,0.71,140.79,140.74,10.1017688]
[1763487834198,0.71,140.78,140.74,10.1017688]
[1763487834601,0.71,140.78,140.74,10.7617688]